{"text_format":"2","workbook":"xlsx","n_sheets":2,"sheets":["sinteza","mobilitati studenti"],"not_rendered":{"charts":0,"images":0,"macros":0,"external_links":0,"defined_names":0,"comments":1,"pivot_tables":0},"unopened":[],"bounds":{"document_bytes":16777216,"sheet_cells":100000,"run_cost":"one","rows_first":2000,"rows_last":500,"rows_between":2000,"halvings":0,"cell_chars":16384,"cell_head_chars":4096},"cells_cut":0,"cells_raw":0,"read":"whole","date_system":"1900"}

{"sheet":"sinteza","index":0,"n_rows":141,"n_cols":10,"rows_kept":141,"cut":false,"hidden":false,"merged":[]}
["Acorduri bilaterale Erasmus"]
[null,1.0,"RO PITESTI01 - CZ PLZEN01","Univ. West Bohemia","2014-2020","Cehia"]
[null,2.0,"RO PITESTI01 - E BILBAO01","Univ. Pais Vasco","2014-2020","Spania"]
[null,3.0,"RO PITESTI01 - E VALENCI02","Univ. Politehnica Valencia","2014-2020","Spania"]
[null,4.0,"RO PITESTI01 - E VALENCI72","Fundacion Eifor (Xabec)","2014-2020","Spania"]
[null,5.0,"RO PITESTI01 - F ARRAS12","Univ. d'Artois","2014-2020","Franta"]
[null,6.0,"RO PITESTI01 - F PARIS013","Univ. Paris 13","2014-2020","Franta"]
[null,7.0,"RO PITESTI01 - F POITIER01","Univ. de Poitiers","2014-2020","Franta"]
[null,8.0,"RO PITESTI01 - I BARI05","Univ. Politecnico di Bari","2014-2020","Italia"]
[null,9.0,"RO PITESTI01 - N HALDEN02","Ostfold Univ. College","2014-2020","Norvegia"]
[null,10.0,"RO PITESTI01 - PL LUBIN02","The Lower Silesian Univ.","2014-2020","Polonia"]
[null,11.0,"RO PITESTI01 - TR ANKARA01","Gazi Univ. Fac. Technology","2014-2020","Turcia"]
[null,12.0,"RO PITESTI01 - TR ANKARA02","Gazi Univ. Fac. Engineering","2014-2020","Turcia"]
[null,13.0,"RO PITESTI01 - TR IZMIR06","Izmir Univ.","2014-2020","Turcia"]
[null,14.0,"RO PITESTI01 - TR NEVSEHI02","Nevsehir Univ.","2014-2020","Turcia"]
[null,15.0,"RO PITESTI01 – LT VILNIUS11","Vilniaus Kooperacijos Koleija","2014-2020","Lituania"]
[null,16.0,"RO PITESTI01 -","VFSTR University, India","2017-2022","India"]
[null,17.0,"RO PITESTI01 -","Marwadi University","2017-2022","India"]
[]
[null,"Mobilitati de predare (cadre didactice titulare UPit)"]
[null,1.0,"RO PITESTI01 - CZ PLZEN01","Univ. West Bohemia","2014-2020","Cehia"]
[null,2.0,"RO PITESTI01 - E BILBAO01","Univ. Pais Vasco","2014-2020","Spania"]
[null,3.0,"RO PITESTI01 - E VALENCI02","Univ. Politehnica Valencia","2014-2020","Spania"]
[null,4.0,"RO PITESTI01 - E VALENCI72","Fundacion Eifor (Xabec)","2014-2020","Spania"]
[null,5.0,"RO PITESTI01 - F ARRAS12","Univ. d'Artois","2014-2020","Franta"]
[null,6.0,"RO PITESTI01 - F PARIS013","Univ. Paris 13","2014-2020","Franta"]
[null,7.0,"RO PITESTI01 - F POITIER01","Univ. de Poitiers","2014-2020","Franta"]
[null,8.0,"RO PITESTI01 - I BARI05","Univ. Politecnico di Bari","2014-2020","Italia"]
[null,9.0,"RO PITESTI01 - N HALDEN02","Ostfold Univ. College","2014-2020","Norvegia"]
[null,10.0,"RO PITESTI01 - PL LUBIN02","The Lower Silesian Univ.","2014-2020","Polonia"]
[null,11.0,"RO PITESTI01 - TR ANKARA01","Gazi Univ. Fac. Technology","2014-2020","Turcia"]
[null,12.0,"RO PITESTI01 - TR ANKARA02","Gazi Univ. Fac. Engineering","2014-2020","Turcia"]
[null,13.0,"RO PITESTI01 - TR IZMIR06","Izmir Univ.","2014-2020","Turcia"]
[null,14.0,"RO PITESTI01 - TR NEVSEHI02","Nevsehir Univ.","2014-2020","Turcia"]
[null,15.0,"RO PITESTI01 – LT VILNIUS11","Vilniaus Kooperacijos Koleija","2014-2020","Lituania"]
[null,16.0,"RO PITESTI01 -","VFSTR University, India","2017-2022","India"]
[null,17.0,"RO PITESTI01 -","Marwadi University","2017-2022","India"]
[]
[null,"Mobilitati de formare profesionala (cadre didactice si ne-didactice titulare UPi"]
[null,1.0,"RO PITESTI01 - CZ PLZEN01","Univ. West Bohemia","2014-2020","Cehia"]
[null,2.0,"RO PITESTI01 - E VALENCI72","Fundacion Eifor (Xabec)","2014-2020","Spania"]
[null,3.0,"RO PITESTI01 - F PARIS013","Univ. Paris 13","2014-2020","Franta"]
[null,4.0,"RO PITESTI01 - TR IZMIR06","Izmir Univ.","2014-2020","Turcia"]
[null,5.0,"RO PITESTI01 – LT VILNIUS11","Vilniaus Kooperacijos Koleija","2014-2020","Lituania"]
[]
["Mobilitati studenti - outgoing"]
[null,"Burse Erasmus",null,"Total",null,{"$f":"SUM(E48:E53)","v":73},null,"Proiecte",null,{"$f":"SUM(I48:I52)","v":8}]
[null,"Studii",null,"Licenta",{"$f":"E54+E60+E66+E72+E78","v":42},null,null,"2011-2012"]
[null,null,null,"Master",0,null,null,"2012-2013"]
[null,null,null,"Doctorat",0,null,null,"2013-2014"]
[null,"Practica",null,"Licenta",31,null,null,"2014-2015"]
[null,null,null,"Master",0,null,null,"2015-2016:",8.0]
[null,null,null,"Doctorat",0]
[null,"2011-2012","Studii","Licenta",1.0,{"$f":"SUM(E54:E59)","v":1}]
[null,null,null,"Master"]
[null,null,null,"Doctorat"]
[null,null,"Practica","Licenta"]
[null,null,null,"Master"]
[null,null,null,"Doctorat"]
[null,"2012-2013","Studii","Licenta",5.0,{"$f":"SUM(E60:E65)","v":13}]
[null,null,null,"Master"]
[null,null,null,"Doctorat"]
[null,null,"Practica","Licenta",8.0]
[null,null,null,"Master"]
[null,null,null,"Doctorat"]
[null,"2013-2014","Studii","Licenta",7.0,{"$f":"SUM(E66:E71)","v":16}]
[null,null,null,"Master"]
[null,null,null,"Doctorat"]
[null,null,"Practica","Licenta",9.0]
[null,null,null,"Master"]
[null,null,null,"Doctorat"]
[null,"2014-2015","Studii","Licenta",20.0,{"$f":"SUM(E72:E77)","v":26}]
[null,null,null,"Master"]
[null,null,null,"Doctorat"]
[null,null,"Practica","Licenta",6.0]
[null,null,null,"Master"]
[null,null,null,"Doctorat"]
[null,"2015-2016","Studii","Licenta",{"$f":"2+4+1+2","v":9},{"$f":"SUM(E78:E83)","v":17}]
[null,null,null,"Master"]
[null,null,null,"Doctorat"]
[null,null,"Practica","Licenta",8.0]
[null,null,null,"Master"]
[null,null,null,"Doctorat"]
[]
["Mobilitati studenti - incoming"]
[null,"Burse Erasmus",null,"Total",null,{"$f":"SUM(E87:E92)","v":8},null,"Proiecte",null,{"$f":"SUM(I87:I91)","v":20}]
[null,"Studii",null,"Licenta",{"$f":"E93+E99+E105+E111+E117","v":8},null,null,"2011-2012"]
[null,null,null,"Master",0,null,null,"2012-2013"]
[null,null,null,"Doctorat",0,null,null,"2013-2014"]
[null,"Practica",null,"Licenta",0,null,null,"2014-2015"]
[null,null,null,"Master",0,null,null,"2015-2016:",20.0]
[null,null,null,"Doctorat",0]
[null,"2011-2012","Studii","Licenta",2.0,{"$f":"SUM(E93:E98)","v":2},"IE"]
[null,null,null,"Master"]
[null,null,null,"Doctorat"]
[null,null,"Practica","Licenta"]
[null,null,null,"Master"]
[null,null,null,"Doctorat"]
[null,"2012-2013","Studii","Licenta",1.0,{"$f":"SUM(E99:E104)","v":1},"IE"]
[null,null,null,"Master"]
[null,null,null,"Doctorat"]
[null,null,"Practica","Licenta"]
[null,null,null,"Master"]
[null,null,null,"Doctorat"]
[null,"2013-2014","Studii","Licenta",2.0,{"$f":"SUM(E105:E110)","v":2},"IE"]
[null,null,null,"Master"]
[null,null,null,"Doctorat"]
[null,null,"Practica","Licenta"]
[null,null,null,"Master"]
[null,null,null,"Doctorat"]
[null,"2014-2015","Studii","Licenta",1.0,{"$f":"SUM(E111:E116)","v":1},"EA"]
[null,null,null,"Master"]
[null,null,null,"Doctorat"]
[null,null,"Practica","Licenta"]
[null,null,null,"Master"]
[null,null,null,"Doctorat"]
[null,"2015-2016","Studii","Licenta",2.0,{"$f":"SUM(E117:E122)","v":2},"IE"]
[null,null,null,"Master"]
[null,null,null,"Doctorat"]
[null,null,"Practica","Licenta"]
[null,null,null,"Master"]
[null,null,null,"Doctorat"]
[]
["Cauze ale cresterii numarului de mobilitati studentesti:"]
[]
[null,"· Sprijin in diseminarea informatiilor din partea colectivului DECIE"]
[null,"· Simplificarea procedurilor de echivalare a rezultatelor Erasmus"]
["Dificultati:"]
[null,"· Studenti outgoing:"]
[null,null,"o Temerea studentilor ca nu isi pot echivala activitatile Erasmus (studii/practica)"]
[null,null,"o Temerea unor consecinte neplacute la intoarcerea din stagiu din partea unor cadre didactice"]
[null,null,"o Temerea studentilor referitoare la sesiunile speciale pentru studenti Erasmus"]
[null,null,"o Temerea referitoare la recuperarii activitatilor didactice – laborator. Imposibilitatea gasirii unor solutii de comunicare/lucru online cu c.d. din DECIE pe parcursul stagiului"]
[null,null,"o Existenta mentalitatii din partea unor c.d. DECIE „cum predau eu cursul nu il mai preda nimeni in Europa”. Inflexibilitate in echivalarea materiilor din partea unor c.d. DECIE"]
[null,null,"o Dificultati in transmiterea catre studenti a informatiilor referitoare la programe/activitati de tip relatii internationale"]
[null,"· Studenti incoming:"]
[null,null,"o Inexistenta in limba engleza:"]
[null,null,null,"fise de disciplina"]
[null,null,null,"descrierea materiilor"]
[null,null,null,"descrierea competentelor/programelor"]
[null,null,"o Site-ul ofera informatii doar in limba romana. Informatiile sunt foarte greu de gasit."]

{"sheet":"mobilitati studenti","index":1,"n_rows":46,"n_cols":8,"rows_kept":46,"cut":false,"hidden":false,"merged":[]}
["Nr. crt.","Nume si prenume","Nivel de studiu","Specializarea","Anul","Perioada","Institutia partenera","Tipul mobilitatii\n Stagiu de studiu (SMS)\n Stagiu de plasament (SMP)"]
["2014-2015"]
[1.0,"Dumitrașcu Eduard Ionuț","Nivel licență","Calculatoare","III","09.02.2015-05.06.2015","Izmir University, Turcia","SMS"]
[2.0,"Deaconu Elena Georgiana","Nivel licență","Calculatoare","III","09.02.2015-05.06.2015","Izmir University, Turcia","SMS"]
[3.0,"Moruz Alina","Nivel licență","Calculatoare","II","09.02.2015-05.06.2015","Izmir University, Turcia","SMS"]
[4.0,"Sandu Emilian","Nivel licență","Calculatoare","III","09.02.2015-05.06.2015","Izmir University, Turcia","SMS"]
[5.0,"Constantin Marius Ionut","Nivel licență","Electronică Aplicată","III","28.02.2015-14.07.2015","The Lower Silesian University of Entrepreneurship and Technology in Polkowice, Polonia","SMS"]
[6.0,"Damian Constantin","Nivel licență","Retele si Software de Telecomunicații","III","28.02.2015-14.07.2015","The Lower Silesian University of Entrepreneurship and Technology in Polkowice, Polonia","SMS"]
[7.0,"Deaconescu Ionut Cosmin","Nivel licență","Calculatoare","IV","28.02.2015-28.05.2015","The Lower Silesian University of Entrepreneurship and Technology in Polkowice, Polonia","SMS"]
[8.0,"Albu Iulian Alexandru","Nivel licență","Calculatoare","IV","28.02.2015-28.05.2015","The Lower Silesian University of Entrepreneurship and Technology in Polkowice, Polonia","SMS"]
[9.0,"Badea George Cosmin","Nivel licență","Electronică Aplicată","III","28.02.2015-14.07.2015","The Lower Silesian University of Entrepreneurship and Technology in Polkowice, Polonia","SMS"]
[10.0,"Blidaru Cătălina Elena","Nivel licență","Retele si Software de Telecomunicații","IV","28.02.2015-28.05.2015","The Lower Silesian University of Entrepreneurship and Technology in Polkowice, Polonia","SMS"]
[11.0,"Palcu Luiza Adriana","Nivel licență","Electronică Aplicată","III","30.01.2015-09.07.2015","Universidad del Pais Vasco, Spania","SMS"]
[12.0,"Oprea Andrei","Nivel licență","Electromecanică","III","26.01.2015-09.07.2015","Universidad del Pais Vasco, Spania","SMS"]
[13.0,"Siposs Arnold Konrad","Nivel licență","Calculatoare","III","28.02.2015-14.07.2015","The Lower Silesian University of Entrepreneurship and Technology in Polkowice, Polonia","SMS"]
[14.0,"Dobrică Adrian","Nivel licență","Electronică Aplicată","III","28.02.2015-14.07.2015","The Lower Silesian University of Entrepreneurship and Technology in Polkowice, Polonia","SMS"]
[15.0,"Simedre Mirel Adrian","Nivel licență","Electronică Aplicată","III","28.02.2015-14.07.2015","The Lower Silesian University of Entrepreneurship and Technology in Polkowice, Polonia","SMS"]
[16.0,"Ion Paul Mihai","Nivel licență","Retele si Software de Telecomunicații","III","28.02.2015-14.07.2015","The Lower Silesian University of Entrepreneurship and Technology in Polkowice, Polonia","SMS"]
[17.0,"Zlotea George Liviu","Nivel licență","Electromecanică","III","26.01.2015-09.07.2015","Universidad del Pais Vasco, Spania","SMS"]
[18.0,"Ciobanu Răducu Nicolae","Nivel licență","Electronică Aplicată","II","30.01.2015-09.07.2015","Universidad del Pais Vasco, Spania","SMS"]
[19.0,"Bodea Marian Bogdan","Nivel licență","Calculatoare","III","09.02.2015-05.06.2015","Izmir University, Turcia","SMS"]
[20.0,"Calmîș Marcel","Nivel licență","Calculatoare","II","09.02.2015-05.06.2015","Izmir University, Turcia","SMS"]
[21.0,"Nedelea Dan Dumitru","Nivel licență","Electromecanică","III","20.07.2015-19.09.2015","Izmir University, Turcia","SMP"]
[22.0,"Perjoiu Ionuț Alin","Nivel licență","Electromecanică","II","20.07.2015-19.09.2015","Izmir University, Turcia","SMP"]
[23.0,"Jitianu Iuliana Alina","Nivel licență","Electromecanică","II","15.07.2015-14.09.2015","Firma Polkowski, Polonia","SMP"]
[24.0,"Patrașcu Valentin Bogdan","Nivel licență","Electronică Aplicată","III","15.07.2015-14.09.2015","Firma Polkowski, Polonia","SMP"]
[25.0,"Marinca Florin","Nivel licență","Electromecanică","II","15.07.2015-14.09.2015","Firma Polkowski, Polonia","SMP"]
[26.0,"Sofianu Marinela Roxana","Nivel licență","Electronică Aplicată","II","15.07.2015-14.09.2015","Firma Polkowski, Polonia","SMP"]
["2015-2016"]
[1.0,"Ana Maria Delisor","Nivel licență","Electromecanică","III","01.02.2016-30.06.2016","Universite Poitiers","SMS"]
[2.0,"Florin Marinca","Nivel licență","Electromecanică","IV","01.02.2016-30.06.2016","Universite Poitiers","SMS"]
[3.0,"Adriana Iordan","Nivel licență","Calculatoare","III","29.02.2016-24.06.2016","The Lower Silesian University of Entrepreneurship and Technology in Polkowice, Polonia","SMS"]
[4.0,"Catalina Andreea Craciun","Nivel licență","Calculatoare","III","29.02.2016-24.06.2016","The Lower Silesian University of Entrepreneurship and Technology in Polkowice, Polonia","SMS"]
[5.0,"Ion Alexandru Hapa","Nivel licență","Calculatoare","III","29.02.2016-24.06.2016","The Lower Silesian University of Entrepreneurship and Technology in Polkowice, Polonia","SMS"]
[6.0,"Lidia Florina Arnautu","Nivel licență","Calculatoare","III","29.02.2016-24.06.2016","The Lower Silesian University of Entrepreneurship and Technology in Polkowice, Polonia","SMS"]
[7.0,"Bortosu Bogdan Ionut","Nivel licență","Calculatoare","II","07.2016-09.2016","The Lower Silesian University of Entrepreneurship and Technology in Polkowice, Polonia","SMP"]
[8.0,"Dospinoiu Nicoleta Larisa","Nivel licență","Calculatoare","II","07.2016-09.2017","The Lower Silesian University of Entrepreneurship and Technology in Polkowice, Polonia","SMP"]
[9.0,"Vlas Dionis","Nivel licență","Calculatoare","II","07.2016-09.2018","The Lower Silesian University of Entrepreneurship and Technology in Polkowice, Polonia","SMP"]
[10.0,"Floroiu Dragos Nicolae","Nivel licență","Electromecanica","II","07.2016-09.2019","The Lower Silesian University of Entrepreneurship and Technology in Polkowice, Polonia","SMP"]
[11.0,"Lazarescu Andrei","Nivel licență","Electromecanica","II","07.2016-09.2020","The Lower Silesian University of Entrepreneurship and Technology in Polkowice, Polonia","SMP"]
[12.0,"Neblea Lavinia Ioana","Nivel licență","Electromecanica","II","07.2016-09.2021","The Lower Silesian University of Entrepreneurship and Technology in Polkowice, Polonia","SMP"]
[13.0,"Perjoiu Ionut Alin","Nivel licență","Electromecanica","II","07.2016-09.2022","The Lower Silesian University of Entrepreneurship and Technology in Polkowice, Polonia","SMP"]
[14.0,"Puiu Bogdan","Nivel licență","Electromecanica","II","07.2016-09.2023","The Lower Silesian University of Entrepreneurship and Technology in Polkowice, Polonia","SMP"]
[15.0,"Ionut Lucian Avramoiu","Nivel licență","Retele si Software pentru Telecomunicatii","III","18.09.2015-25.01.2016","Izmir University, Turkey","SMS"]
[16.0,"Silviu DAN","Nivel licență","Electromecanica","IV","02.09.2015-18.02.2016","Universitat Politecnica de Valencia, Spain","SMS"]
[17.0,"Dan Dumitru Nedelea","Nivel licență","Electromecanica","IV","02.09.2015-18.02.2017","Universitat Politecnica de Valencia, Spain","SMS"]